fUSD/lending_fUSD_20250502
["ID","MTS","AMOUNT","RATE_DAILY","PERIOD"]
[359630476,1746197367925,-2011.99255353,0.0001972,2]
[359630477,1746197367947,-150.0,0.00019729,2]
[359630478,1746197367969,-150.0,0.00019733,2]
[359630479,1746197367991,-150.0,0.00019735,2]
[359630480,1746197368011,-151.04397921,0.00019736,2]
[359630481,1746197368034,-150.0,0.00019737,2]
[359630482,1746197368056,-150.0,0.00019739,2]
[359630483,1746197368079,-150.0,0.00019741,2]
[359630484,1746197368101,-150.0,0.00019742,2]
[359630485,1746197368124,-1817.35393724,0.00019745,2]
[359630486,1746197368147,-150.0,0.00019746,2]
[359630487,1746197368424,-2011.99255353,0.00019746,2]
[359630488,1746197368449,-150.0,0.00019747,2]
[359630489,1746197368472,-150.0,0.00019749,2]
[359630490,1746197368496,-150.0,0.0001975,2]
[359630491,1746197368522,-150.0,0.00019753,2]
[359630492,1746197368545,-150.0,0.00019754,2]
[359630493,1746197368568,-150.0,0.00019757,2]
[359630494,1746197368593,-150.0,0.00019759,2]
[359630495,1746197368618,-150.0,0.0001976,2]
[359630496,1746197368643,-150.0,0.00019761,2]
[359630497,1746197368666,-150.0,0.00019764,2]
[359630498,1746197368689,-150.0,0.00019764,2]
[359630499,1746197368712,-150.0,0.00019766,2]
[359630500,1746197368738,-500.0,0.00019767,2]
[359630501,1746197368762,-520.86036319,0.00019767,2]
[359630502,1746197368784,-450.0,0.00019767,2]
[359630503,1746197368806,-450.0,0.00019767,2]
[359630504,1746197368830,-450.0,0.00019767,2]
[359630505,1746197368852,-450.0,0.00019767,2]
[359630506,1746197368875,-450.0,0.00019767,2]
[359630507,1746197368897,-775.53,0.00019767,2]
[359630508,1746197368919,-450.0,0.00019767,2]
[359630509,1746197368941,-939.43,0.00019767,2]
[359630510,1746197368963,-1000.0,0.00019768,2]
[359630511,1746197368986,-450.0,0.00019768,2]
[359630512,1746197369007,-476.64,0.00019768,2]
[359630513,1746197369029,-868.566857,0.00019768,2]
[359630514,1746197369051,-671.954655,0.00019768,2]
[359630515,1746197369073,-450.0,0.00019768,2]
[359630516,1746197369095,-450.0,0.00019768,2]
[359630517,1746197369116,-450.0,0.00019768,2]
[359630518,1746197369137,-450.0,0.00019768,2]
[359630519,1746197369159,-489.25,0.00019768,2]
[359630520,1746197369179,-450.0,0.00019768,2]
[359630521,1746197369200,-450.0,0.00019768,2]
[359630522,1746197369222,-531.99,0.00019768,2]
[359630523,1746197369243,-450.0,0.00019768,2]
[359630524,1746197369264,-450.0,0.00019768,2]
[359630525,1746197369286,-450.0,0.00019768,2]
[359630526,1746197369307,-544.41,0.00019768,2]
[359630527,1746197369330,-989.9,0.00019768,2]
[359630528,1746197369352,-450.0,0.00019768,2]
[359630529,1746197369374,-450.0,0.00019768,2]
[359630530,1746197369396,-450.0,0.00019768,2]
[359630531,1746197369417,-450.0,0.00019768,2]
[359630532,1746197369444,-450.0,0.00019768,2]
[359630533,1746197369466,-450.0,0.00019768,2]
[359630534,1746197369488,-450.0,0.00019768,2]
[359630535,1746197369512,-450.0,0.00019768,2]
[359630536,1746197369534,-450.0,0.00019768,2]
[359630537,1746197369556,-450.0,0.00019768,2]
[359630538,1746197369578,-467.97,0.00019768,2]
[359630539,1746197369602,-450.0,0.00019768,2]
[359630540,1746197369625,-450.0,0.00019768,2]
[359630541,1746197369648,-450.0,0.00019768,2]
[359630542,1746197369670,-450.0,0.00019768,2]
[359630543,1746197369692,-450.0,0.00019768,2]
[359630544,1746197369715,-453.2,0.00019768,2]
[359630545,1746197369739,-479.92,0.00019768,2]
[359630546,1746197369761,-450.0,0.00019768,2]
[359630547,1746197369782,-1433.52,0.00019768,2]
[359630548,1746197369804,-450.0,0.00019768,2]
[359630549,1746197369826,-450.0,0.00019768,2]
[359630550,1746197369849,-450.0,0.00019768,2]
[359630551,1746197369870,-450.0,0.00019768,2]
[359630552,1746197369893,-450.0,0.00019768,2]
[359630553,1746197369916,-487.92,0.00019768,2]
[359630554,1746197369939,-450.0,0.00019768,2]
[359630555,1746197369963,-450.0,0.00019768,2]
[359630556,1746197369988,-674.56,0.00019768,2]
[359630557,1746197370013,-450.0,0.00019768,2]
[359630558,1746197370037,-450.0,0.00019768,2]
[359630559,1746197370061,-221.30547546,0.00019768,2]
[359630560,1746197370084,-1128.13,0.00019768,2]
[359630561,1746197370107,-631.82,0.00019768,2]
[359630562,1746197370133,-450.0,0.00019768,2]
[359630563,1746197370156,-665.56,0.00019768,2]
[359630564,1746197370179,-781.82,0.00019768,2]
[359630565,1746197370202,-412.29410522,0.00019768,2]
[359630566,1746197370225,-533.54,0.00019768,2]
[359630567,1746197370248,-450.0,0.00019768,2]
[359630568,1746197370271,-450.0,0.00019768,2]
[359630569,1746197370294,-450.0,0.00019768,2]
[359630570,1746197370316,-708.76,0.00019768,2]
[359630571,1746197370338,-450.0,0.00019768,2]
[359630572,1746197370361,-450.0,0.00019768,2]
[359630573,1746197370382,-450.0,0.00019768,2]
[359630574,1746197370404,-450.0,0.00019768,2]
[359630575,1746197370426,-450.0,0.00019768,2]
[359630576,1746197370451,-450.0,0.00019768,2]
[359630577,1746197370473,-450.0,0.00019768,2]
[359630578,1746197370495,-450.0,0.00019768,2]
[359630579,1746197370518,-475.16,0.00019768,2]
[359630580,1746197370540,-723.39,0.00019768,2]
[359630581,1746197370562,-450.0,0.00019768,2]
[359630582,1746197370584,-450.0,0.00019768,2]
[359630583,1746197370606,-501.7,0.00019768,2]
[359630584,1746197370628,-8566.52,0.00019768,2]
[359630585,1746197370649,-510.47,0.00019768,2]
[359630586,1746197370671,-662.23,0.00019768,2]
[359630587,1746197370694,-450.0,0.00019768,2]
[359630588,1746197370716,-450.0,0.00019768,2]
[359630589,1746197370740,-450.0,0.00019768,2]
[359630590,1746197370763,-450.0,0.00019768,2]
[359630591,1746197370784,-450.0,0.00019768,2]
[359630592,1746197370806,-450.0,0.00019768,2]
[359630593,1746197370830,-450.0,0.00019768,2]
[359630594,1746197370852,-450.0,0.00019768,2]
[359630595,1746197370874,-450.0,0.00019768,2]
[359630596,1746197370897,-450.0,0.00019768,2]
[359630597,1746197370919,-509.33,0.00019768,2]
[359630598,1746197370941,-681.28,0.00019768,2]
[359630599,1746197370963,-469.26,0.00019768,2]
[359630600,1746197370984,-450.0,0.00019768,2]
[359630601,1746197371007,-652.65,0.00019768,2]
[359630602,1746197371029,-1843.45,0.00019768,2]
[359630603,1746197371053,-812.1,0.00019768,2]
[359630604,1746197371077,-8789.94,0.00019768,2]
[359630605,1746197371099,-743.95,0.00019768,2]
[359630606,1746197371123,-450.0,0.00019768,2]
[359630607,1746197371148,-1685.22,0.00019768,2]
[359630608,1746197371171,-450.0,0.00019768,2]
[359630609,1746197371193,-450.0,0.00019768,2]
[359630610,1746197371218,-450.0,0.00019768,2]
[359630611,1746197371241,-473.83,0.00019768,2]
[359630612,1746197371263,-502.27,0.00019768,2]
[359630613,1746197371285,-250.0,0.00019768,2]
[359630614,1746197371306,-450.0,0.00019768,2]
[359630615,1746197371328,-535.86,0.00019768,2]
[359630616,1746197371350,-450.0,0.00019768,2]
[359630617,1746197371373,-450.0,0.00019768,2]
[359630618,1746197371394,-450.0,0.00019768,2]
[359630619,1746197371415,-753.99,0.00019768,2]
[359630620,1746197371439,-450.0,0.00019768,2]
[359630621,1746197371460,-450.0,0.00019768,2]
[359630622,1746197371483,-565.83,0.00019768,2]
[359630623,1746197371504,-528.1,0.00019768,2]
[359630624,1746197371527,-438.83767395,0.00019768,2]
[359630625,1746197371548,-450.0,0.00019768,2]
[359630626,1746197371570,-483.47,0.00019768,2]
[359630627,1746197371591,-450.0,0.00019768,2]
[359630628,1746197371615,-450.0,0.00019768,2]
[359630629,1746197371637,-450.0,0.00019768,2]
[359630630,1746197371658,-450.0,0.00019768,2]
[359630631,1746197371679,-450.0,0.00019768,2]
[359630632,1746197371701,-857.7,0.00019768,2]
[359630633,1746197371721,-450.0,0.00019768,2]
[359630634,1746197371745,-450.0,0.00019768,2]
[359630635,1746197371767,-748.09,0.00019768,2]
[359630636,1746197371788,-816.54,0.00019768,2]
[359630637,1746197371808,-450.0,0.00019768,2]
[359630638,1746197371829,-450.0,0.00019768,2]
[359630639,1746197371850,-645.19,0.00019768,2]
[359630640,1746197371872,-450.0,0.00019768,2]
[359630641,1746197371894,-988.83,0.00019768,2]
[359630642,1746197371915,-1637.93,0.00019768,2]
[359630643,1746197371935,-711.85,0.00019768,2]
[359630644,1746197371956,-450.0,0.00019768,2]
[359630645,1746197371979,-3186.44,0.00019768,2]
[359630646,1746197372001,-450.0,0.00019768,2]
[359630647,1746197372022,-450.0,0.00019768,2]
[359630648,1746197372045,-456.50022682,0.00019768,2]
[359630649,1746197372068,-495.95,0.00019768,2]
[359630650,1746197372090,-629.66,0.00019768,2]
[359630651,1746197372114,-2894.93,0.00019768,2]
[359630652,1746197372136,-450.0,0.00019768,2]
[359630653,1746197372157,-450.0,0.00019768,2]
[359630654,1746197372181,-450.0,0.00019768,2]
[359630655,1746197372203,-517.74079101,0.00019768,2]
[359630656,1746197372229,-1338.7,0.00019768,2]
[359630657,1746197372253,-726.5,0.00019768,2]
[359630658,1746197372276,-450.0,0.00019768,2]
[359630659,1746197372299,-450.0,0.00019768,2]
[359630660,1746197372323,-450.0,0.00019768,2]
[359630661,1746197372346,-450.0,0.00019768,2]
[359630662,1746197372369,-450.0,0.00019768,2]
[359630663,1746197372391,-513.54,0.00019768,2]
[359630664,1746197372412,-4520.77,0.00019768,2]
[359630665,1746197372436,-450.0,0.00019768,2]
[359630666,1746197372460,-500.0,0.00019768,2]
[359630667,1746197372643,-450.0,0.00019768,2]
[359630668,1746197372703,-876.67,0.00019768,2]
[359630669,1746197372725,-450.0,0.00019768,2]
[359630670,1746197372749,-591.16,0.00019768,2]
[359630671,1746197372772,-450.0,0.00019768,2]
[359630672,1746197372795,-749.86,0.00019768,2]
[359630673,1746197372819,-450.0,0.00019768,2]
[359630674,1746197372840,-1565.19,0.00019768,2]
[359630675,1746197372864,-174.148746,0.00019768,2]
[359630676,1746197372886,-2314.4,0.00019768,2]
[359630677,1746197372909,-461.87,0.00019768,2]
[359630678,1746197372931,-1139.98,0.00019768,2]
[359630679,1746197372954,-450.0,0.00019768,2]
[359630680,1746197372978,-450.0,0.00019768,2]
[359630681,1746197373001,-450.0,0.00019768,2]
[359630682,1746197373025,-467.66,0.00019768,2]
[359630683,1746197373051,-634.06,0.00019768,2]
[359630684,1746197373076,-450.0,0.00019768,2]
[359630685,1746197373100,-450.0,0.00019768,2]
[359630686,1746197373124,-2609.3,0.00019768,2]
[359630687,1746197373147,-469.31,0.00019768,2]
[359630688,1746197373170,-450.0,0.00019768,2]
[359630689,1746197373193,-916.14,0.00019768,2]
[359630690,1746197373217,-450.0,0.00019768,2]
[359630691,1746197373241,-167.988666,0.00019768,2]
[359630692,1746197373265,-514.48,0.00019768,2]
[359630693,1746197373289,-450.4,0.00019768,2]
[359630694,1746197373314,-13116.57,0.00019768,2]
[359630695,1746197373339,-450.0,0.00019768,2]
[359630696,1746197373362,-784.02,0.00019768,2]
[359630697,1746197373386,-450.0,0.00019768,2]
[359630698,1746197373410,-450.0,0.00019768,2]
[359630699,1746197373438,-908.54,0.00019768,2]
[359630700,1746197373463,-532.23,0.00019768,2]
[359630701,1746197373488,-606.9,0.00019768,2]
[359630702,1746197373511,-450.0,0.00019768,2]
[359630703,1746197373534,-1179.8,0.00019768,2]
[359630704,1746197373558,-2018.71,0.00019768,2]
[359630705,1746197373581,-502.22,0.00019768,2]
[359630706,1746197373603,-450.0,0.00019768,2]
[359630707,1746197373628,-619.57,0.00019768,2]
[359630708,1746197373652,-450.0,0.00019768,2]
[359630709,1746197373676,-1326.98,0.00019768,2]
[359630710,1746197373699,-815.55,0.00019768,2]
[359630711,1746197373721,-466.12822796,0.00019768,2]
[359630712,1746197373746,-450.0,0.00019768,2]
[359630713,1746197373770,-664.37,0.00019768,2]
[359630714,1746197373793,-450.0,0.00019768,2]
[359630715,1746197373817,-629.8,0.00019768,2]
[359630716,1746197373840,-450.0,0.00019768,2]
[359630717,1746197373863,-655.34,0.00019768,2]
[359630718,1746197373886,-450.0,0.00019768,2]
[359630719,1746197373909,-450.0,0.00019768,2]
[359630720,1746197373932,-450.0,0.00019768,2]
[359630721,1746197373956,-450.0,0.00019768,2]
[359630722,1746197373979,-6025.94,0.00019768,2]
[359630723,1746197374004,-590.63,0.00019768,2]
[359630724,1746197374028,-450.0,0.00019768,2]
[359630725,1746197374051,-450.0,0.00019768,2]
[359630726,1746197374075,-1369.9,0.00019768,2]
[359630727,1746197374098,-888.59,0.00019768,2]
[359630728,1746197374121,-450.0,0.00019768,2]
[359630729,1746197374143,-541.80794346,0.00019768,2]
[359630730,1746197374165,-450.0,0.00019768,2]
[359630731,1746197374186,-450.0,0.00019768,2]
[359630732,1746197374209,-147543.94,0.00019768,2]
[359630733,1746197374232,-450.0,0.00019769,2]
[359630734,1746197374255,-450.0,0.00019769,2]
[359630735,1746197374277,-491.94,0.00019769,2]
[359630736,1746197374300,-450.0,0.00019769,2]
[359630737,1746197374324,-450.0,0.00019769,2]
[359630738,1746197374348,-519.48,0.00019769,2]
[359630739,1746197374372,-450.0,0.00019769,2]
[359630740,1746197374396,-615.97,0.00019769,2]
[359630741,1746197374418,-450.0,0.00019769,2]
[359630742,1746197374443,-271.97553485,0.00019769,2]
[359630743,1746197374466,-465.2,0.00019769,2]
[359630744,1746197374489,-450.0,0.00019769,2]
[359630745,1746197374514,-450.0,0.00019769,2]
[359630746,1746197374538,-450.0,0.00019769,2]
[359630747,1746197374560,-450.0,0.00019769,2]
[359630748,1746197374582,-450.0,0.00019769,2]
[359630749,1746197374605,-450.0,0.00019769,2]
[359630750,1746197374627,-450.0,0.00019769,2]
[359630751,1746197374649,-450.0,0.00019769,2]
[359630752,1746197374671,-450.0,0.00019769,2]
[359630753,1746197374692,-709.66,0.00019769,2]
[359630754,1746197374714,-580.7,0.00019769,2]
[359630755,1746197374738,-450.0,0.00019769,2]
[359630756,1746197374760,-450.0,0.00019769,2]
[359630757,1746197374783,-450.0,0.00019769,2]
[359630758,1746197374805,-643.56,0.00019769,2]
[359630759,1746197374828,-450.0,0.00019769,2]
[359630760,1746197374851,-450.0,0.00019769,2]
[359630761,1746197374879,-324.10511195,0.00019769,2]
[359630762,1746197374902,-450.0,0.00019769,2]
[359630763,1746197374930,-450.0,0.00019769,2]
[359630764,1746197374954,-667.4,0.00019769,2]
[359630765,1746197374978,-450.0,0.00019769,2]
[359630766,1746197375001,-450.0,0.00019769,2]
[359630767,1746197375024,-900.79,0.00019769,2]
[359630768,1746197375047,-450.0,0.00019769,2]
[359630769,1746197375071,-450.0,0.00019769,2]
[359630770,1746197375094,-613.92,0.00019769,2]
[359630771,1746197375117,-450.0,0.00019769,2]
[359630772,1746197375140,-450.0,0.00019769,2]
[359630773,1746197375162,-450.0,0.00019769,2]
[359630774,1746197375186,-450.0,0.00019769,2]
[359630775,1746197375210,-450.0,0.00019769,2]
[359630776,1746197375237,-450.0,0.00019769,2]
[359630777,1746197375261,-450.0,0.00019769,2]
[359630778,1746197375285,-450.0,0.00019769,2]
[359630779,1746197375308,-450.0,0.00019769,2]
[359630780,1746197375332,-672.37,0.00019769,2]
[359630781,1746197375355,-450.0,0.00019769,2]
[359630782,1746197375378,-450.0,0.00019769,2]
[359630783,1746197375401,-450.0,0.00019769,2]
[359630784,1746197375424,-450.0,0.00019769,2]
[359630785,1746197375452,-450.0,0.00019769,2]
[359630786,1746197375474,-468.91,0.00019769,2]
[359630787,1746197375497,-450.0,0.00019769,2]
[359630788,1746197375520,-614.61,0.00019769,2]
[359630789,1746197375543,-551.75,0.00019769,2]
[359630790,1746197375565,-450.0,0.00019769,2]
[359630791,1746197375590,-624.95,0.00019769,2]
[359630792,1746197375611,-450.0,0.00019769,2]
[359630793,1746197375635,-450.0,0.00019769,2]
[359630794,1746197375658,-591.62,0.00019769,2]
[359630795,1746197375682,-694.32,0.00019769,2]
[359630796,1746197375704,-450.0,0.00019769,2]
[359630797,1746197375727,-450.0,0.00019769,2]
[359630798,1746197375751,-450.0,0.00019769,2]
[359630799,1746197375774,-450.0,0.00019769,2]
[359630800,1746197375796,-450.0,0.00019769,2]
[359630801,1746197375819,-450.0,0.00019769,2]
[359630802,1746197375842,-450.0,0.00019769,2]
[359630803,1746197375866,-656.9,0.00019769,2]
[359630804,1746197375890,-450.0,0.00019769,2]
[359630805,1746197375928,-450.0,0.00019769,2]
[359630806,1746197375952,-450.0,0.00019769,2]
[359630807,1746197375976,-450.0,0.00019769,2]
[359630808,1746197376000,-450.0,0.00019769,2]
[359630809,1746197376025,-450.0,0.00019769,2]
[359630810,1746197376048,-626.95,0.00019769,2]
[359630811,1746197376072,-602.91,0.00019769,2]
[359630812,1746197376096,-450.0,0.00019769,2]
[359630813,1746197376120,-450.0,0.00019769,2]
[359630814,1746197376143,-450.0,0.00019769,2]
[359630815,1746197376166,-2125.0,0.00019769,2]
[359630816,1746197376190,-450.0,0.00019769,2]
[359630817,1746197376214,-238.82591097,0.00019769,2]
[359630818,1746197376238,-450.0,0.00019769,2]
[359630819,1746197376262,-584.1,0.00019769,2]
[359630820,1746197376285,-797.75,0.00019769,2]
[359630821,1746197376308,-450.56598465,0.00019769,2]
[359630822,1746197376332,-1353.05,0.00019769,2]
[359630823,1746197376356,-992.6,0.00019769,2]
[359630824,1746197376380,-468.13,0.00019769,2]
[359630825,1746197376404,-450.0,0.00019769,2]
[359630826,1746197376426,-450.0,0.00019769,2]
[359630827,1746197376460,-450.0,0.00019769,2]
[359630828,1746197376488,-450.0,0.00019769,2]
[359630829,1746197376511,-450.0,0.00019769,2]
[359630830,1746197376536,-839.08,0.00019769,2]
[359630831,1746197376561,-450.0,0.00019769,2]
[359630832,1746197376584,-450.0,0.00019769,2]
[359630833,1746197376608,-712.22,0.00019769,2]
[359630834,1746197376631,-450.0,0.00019769,2]
[359630835,1746197376654,-450.0,0.00019769,2]
[359630836,1746197376678,-581.38,0.00019769,2]
[359630837,1746197376703,-450.0,0.00019769,2]
[359630838,1746197376727,-450.0,0.00019769,2]
[359630839,1746197376751,-1303.35,0.00019769,2]
[359630840,1746197376774,-450.0,0.00019769,2]
[359630841,1746197376798,-541.09,0.00019769,2]
[359630842,1746197376821,-450.0,0.00019769,2]
[359630843,1746197376844,-744.28,0.00019769,2]
[359630844,1746197376867,-450.0,0.00019769,2]
[359630845,1746197376890,-547.68083013,0.00019769,2]
[359630846,1746197376913,-450.0,0.00019769,2]
[359630847,1746197377209,-450.0,0.00019769,2]
[359630848,1746197377233,-450.0,0.00019769,2]
[359630849,1746197377256,-450.0,0.00019769,2]
[359630850,1746197377278,-450.0,0.00019769,2]
[359630851,1746197377301,-269.99919044,0.00019769,2]
[359630852,1746197377324,-525.5,0.00019769,2]
[359630853,1746197377346,-1003.92,0.00019769,2]
[359630854,1746197377370,-450.0,0.00019769,2]
[359630855,1746197377392,-450.0,0.00019769,2]
[359630856,1746197377415,-450.0,0.00019769,2]
[359630857,1746197377440,-450.0,0.00019769,2]
[359630858,1746197377462,-450.0,0.00019769,2]
[359630859,1746197377484,-450.0,0.00019769,2]
[359630860,1746197377507,-450.0,0.00019769,2]
[359630861,1746197377532,-450.0,0.00019769,2]
[359630862,1746197377556,-712.21,0.00019769,2]
[359630863,1746197377578,-411.01286638,0.00019769,2]
[359630864,1746197377602,-450.0,0.00019769,2]
[359630865,1746197377625,-450.0,0.00019769,2]
[359630866,1746197377649,-450.0,0.00019769,2]
[359630867,1746197377672,-709.89,0.00019769,2]
[359630868,1746197377694,-450.0,0.00019769,2]
[359630869,1746197377717,-477.292328,0.00019769,2]
[359630870,1746197377744,-564.11,0.00019769,2]
[359630871,1746197377768,-450.0,0.00019769,2]
[359630872,1746197377791,-477.33623553,0.00019769,2]
[359630873,1746197377813,-555.61622303,0.00019769,2]
[359630874,1746197377836,-1094.83,0.00019769,2]
[359630875,1746197377858,-450.0,0.00019769,2]
[359630876,1746197377880,-450.0,0.00019769,2]
[359630877,1746197377904,-466.52,0.00019769,2]
[359630878,1746197377927,-600.87,0.00019769,2]
[359630879,1746197377948,-450.0,0.00019769,2]
[359630880,1746197377971,-450.0,0.00019769,2]
[359630881,1746197377994,-450.0,0.00019769,2]
[359630882,1746197378016,-450.0,0.00019769,2]
[359630883,1746197378038,-602.22,0.00019769,2]
[359630884,1746197378061,-574.43,0.00019769,2]
[359630885,1746197378084,-406.25701721,0.00019769,2]
[359630886,1746197378107,-1410.6,0.00019769,2]
[359630887,1746197378129,-450.0,0.00019769,2]
[359630888,1746197378152,-486.13792867,0.00019769,2]
[359630889,1746197378174,-450.0,0.00019769,2]
[359630890,1746197378196,-725.67,0.00019769,2]
[359630891,1746197378218,-450.0,0.00019769,2]
[359630892,1746197378240,-450.0,0.00019769,2]
[359630893,1746197378262,-839.28,0.00019769,2]
[359630894,1746197378285,-1519.18,0.00019769,2]
[359630895,1746197378307,-450.0,0.00019769,2]
[359630896,1746197378329,-450.0,0.00019769,2]
[359630897,1746197378352,-450.0,0.00019769,2]
[359630898,1746197378375,-450.0,0.00019769,2]
[359630899,1746197378397,-450.0,0.00019769,2]
[359630900,1746197378420,-450.0,0.00019769,2]
[359630901,1746197378445,-450.0,0.00019769,2]
[359630902,1746197378469,-450.0,0.00019769,2]
[359630903,1746197378493,-450.0,0.00019769,2]
[359630904,1746197378518,-450.0,0.00019769,2]
[359630905,1746197378540,-450.0,0.00019769,2]
[359630906,1746197378563,-450.0,0.00019769,2]
[359630907,1746197378585,-450.0,0.00019769,2]
[359630908,1746197378610,-1104.98,0.00019769,2]
[359630909,1746197378632,-1149.56,0.00019769,2]
[359630910,1746197378655,-515.22,0.00019769,2]
[359630911,1746197378680,-278.04647939,0.00019769,2]
[359630912,1746197379126,367.92803635,0.000309,60]
[359630913,1746197380984,367.92803635,0.000309,60]
[359630914,1746197382119,367.92803635,0.000309,60]
[359630915,1746197392260,367.92803635,0.000309,60]
[359630916,1746197397491,367.92803635,0.000309,60]
[359630917,1746197406156,2164.91,0.00019,2]
[359630918,1746197407940,835.09,0.00019,2]
[359630919,1746197407961,1329.82,0.00019,2]
[359630920,1746197409657,1670.18,0.00019,2]
[359630921,1746197409678,494.73,0.00019,2]
[359630922,1746197410850,1190.36,0.0001888,2]
[359630923,1746197411366,1314.91,0.00019,2]
[359630924,1746197411387,850.0,0.00019,2]
[359630925,1746197413008,367.92803635,0.000309,60]
[359630926,1746197413137,2150.0,0.00019,2]
[359630927,1746197413163,14.91,0.00019,2]
[359630928,1746197423029,367.92803635,0.000309,60]
[359630929,1746197427996,367.92803635,0.000309,60]
[359630937,1746197431623,-459.177648,0.000197,2]
[359630938,1746197431634,-1200.0,0.00019766,2]
[359630939,1746197431644,-96.122352,0.00019766,2]
[359630940,1746197431655,-203.877648,0.00019766,2]
[359630941,1746197431665,-494.96,0.00019767,2]
[359630942,1746197431675,-450.0,0.00019767,2]
[359630943,1746197431684,-450.0,0.00019767,2]
[359630944,1746197431694,-682.46,0.00019767,2]
[359630945,1746197431703,-300.0,0.00019767,2]
[359630946,1746197431713,-813.51,0.00019767,2]
[359630947,1746197431722,-1688.15,0.00019767,2]
[359630948,1746197431731,-450.0,0.00019767,2]
[359630949,1746197431741,-450.0,0.00019767,2]
[359630951,1746197431750,-450.0,0.00019767,2]
[359630953,1746197431760,-450.0,0.00019767,2]
[359630955,1746197431769,-200.0,0.00019768,2]
[359630957,1746197431779,-450.0,0.00019768,2]
[359630959,1746197431788,-511.43,0.00019768,2]
[359630961,1746197431797,-461.16599915,0.00019768,2]
[359630963,1746197431807,-450.0,0.00019768,2]
[359630965,1746197431817,-450.0,0.00019768,2]
[359630967,1746197431826,-3.34635285,0.00019768,2]
[359630971,1746197431847,-446.65364715,0.00019768,2]
[359630973,1746197431856,-450.0,0.00019768,2]
[359630975,1746197431866,-450.0,0.00019768,2]
[359630977,1746197431875,-450.0,0.00019768,2]
[359630979,1746197431885,-450.0,0.00019768,2]
[359630981,1746197431895,-450.0,0.00019768,2]
[359630983,1746197431904,-450.0,0.00019768,2]
[359630984,1746197431912,-1058.94,0.00019768,2]
[359630986,1746197431921,-450.0,0.00019768,2]
[359630988,1746197431931,-5786.81229495,0.00019768,2]
[359630990,1746197431943,-488.27770505,0.00019768,2]
[359630992,1746197431952,-450.0,0.00019768,2]
[359630994,1746197431961,-450.0,0.00019768,2]
[359630995,1746197431970,-450.0,0.00019768,2]
[359630997,1746197431982,-594.26460382,0.00019768,2]
[359630999,1746197431994,-1149.94998,0.00019768,2]
[359631001,1746197432005,-102.58541618,0.00019768,2]
[359631003,1746197432015,-493.75,0.00019768,2]
[359631005,1746197432024,-403.66545382,0.00019768,2]
[359631009,1746197432050,-116.92454618,0.00019768,2]
[359631011,1746197432059,-653.38,0.00019768,2]
[359631013,1746197432069,-731.7,0.00019768,2]
[359631015,1746197432079,-511.22,0.00019768,2]
[359631017,1746197432089,-654.43,0.00019768,2]